bitfinex/quotes_ETHUSD_20241122
["timestamp","ask_amount","ask_price","bid_price","bid_amount"]
[1732314789200,0.755,3304.8,3304.7,1.92113308]
[1732314790274,0.7542,3304.8,3304.7,1.92113308]
[1732314790695,0.7534,3304.8,3304.7,1.92113308]
[1732314791587,0.7526,3304.8,3304.7,1.92113308]
[1732314792482,0.7518,3304.8,3304.7,1.92113308]
[1732314792813,0.751,3304.8,3304.7,1.92113308]
[1732314793188,0.7502,3304.8,3304.7,1.92113308]
[1732314793709,0.7478,3304.8,3304.7,1.92113308]
[1732314794641,0.747,3304.8,3304.7,1.92113308]
[1732314794812,0.7454,3304.8,3304.7,1.92113308]
[1732314795335,0.7628,3305.6,3304.7,1.92113308]
[1732314795534,0.762,3305.6,3304.8,1.62143935]
[1732314795843,1.5248,3305.6,3304.8,1.62143935]
[1732314796205,1.524,3305.6,3304.8,1.62143935]
[1732314796608,1.5232,3305.6,3304.8,1.62143935]
[1732314797934,1.5224,3305.6,3304.8,1.62143935]
[1732314798301,1.5216,3305.6,3304.8,1.98662255]
[1732314799002,1.52,3305.6,3304.9,0.5742]
[1732314799201,0.7628,3305.6,3305.0,0.03024836]
[1732314799400,0.7628,3305.6,3305.1,0.3651832]
[1732314799634,0.7612,3305.6,3305.2,0.03024798]
[1732314800158,0.7596,3305.6,3305.2,0.03024798]
[1732314800438,0.7588,3305.6,3305.2,0.39543118]
[1732314800638,0.1493577,3307.5,3305.2,0.39543118]
[1732314800842,1.53408185,3307.4,3305.2,0.39543118]
[1732314801138,0.28140348,3307.3,3305.2,0.39543118]
[1732314801335,0.83140348,3307.2,3305.3,0.575]
[1732314801552,0.55,3307.0,3305.4,0.03024465]
[1732314801717,0.55,3306.8,3305.4,0.03024465]
[1732314801916,0.28140348,3306.7,3305.4,0.03024465]
[1732314802227,0.8033,3306.5,3305.4,0.03024465]
[1732314802426,0.28140348,3306.4,3305.4,0.39542785]
[1732314802746,0.28140348,3306.3,3305.4,0.39542785]
[1732314803055,0.8033,3306.5,3305.4,0.39542785]
[1732314803254,0.28123133,3306.4,3305.4,0.39542785]
[1732314803728,0.28123133,3306.3,3305.4,0.39542785]
[1732314803926,0.8033,3306.5,3305.4,0.39542785]
[1732314804321,0.2812628,3306.4,3305.4,0.39542785]
[1732314805555,0.2812628,3306.4,3305.5,0.3651832]
[1732314805719,0.2812628,3306.4,3305.6,0.03024275]
[1732314807131,0.8033,3306.5,3305.6,0.03024275]
[1732314807338,0.8033,3306.5,3305.7,0.9401832]
[1732314807642,0.8033,3306.5,3305.8,0.03024069]
[1732314808443,0.28129783,3306.4,3305.8,0.03024069]
[1732314808754,0.8033,3306.5,3305.8,0.03024069]
[1732314809464,0.28130331,3306.4,3305.8,0.03024069]
[1732314810277,0.8033,3306.5,3305.8,0.03024069]
[1732314811074,0.28128622,3306.4,3305.7,0.39542391]
[1732314811431,0.28128622,3306.3,3305.7,0.39542391]
[1732314811763,0.8033,3306.5,3305.7,0.39542391]
[1732314811962,0.28138311,3306.4,3305.7,0.3651832]
[1732314812277,0.28138311,3306.3,3305.7,0.3651832]
[1732314812438,0.28138311,3306.4,3305.7,0.3651832]
[1732314812629,0.28138311,3306.3,3305.7,0.3651832]
[1732314812830,1.09518311,3306.2,3305.7,0.3651832]
[1732314813175,0.28138311,3306.1,3305.3,0.0302462]
[1732314813466,1.206781,3307.4,3305.3,0.0302462]
[1732314813467,0.28138311,3306.0,3305.3,0.0302462]
[1732314813670,1.09518311,3305.9,3305.2,0.39543037]
[1732314813841,1.09518311,3305.9,3305.2,0.3651832]
[1732314814042,0.28138311,3305.8,3305.2,0.3651832]
[1732314814369,0.28138311,3305.7,3305.2,0.3651832]
[1732314814676,0.8138,3305.9,3305.2,0.3651832]
[1732314814862,0.28161683,3305.8,3305.2,0.3651832]
[1732314815033,0.28161683,3305.7,3305.2,0.3651832]
[1732314815375,0.8138,3305.9,3305.2,0.3651832]
[1732314815530,0.28165698,3305.8,3305.2,0.3651832]
[1732314815737,0.28165698,3305.7,3305.2,0.3651832]
[1732314815932,0.8138,3305.9,3305.2,0.3651832]
[1732314816244,0.28165588,3305.8,3305.2,0.3651832]
[1732314816442,0.28165588,3305.7,3305.2,0.3651832]
[1732314816648,0.28165588,3305.6,3305.2,0.3651832]
[1732314816851,0.7621,3305.7,3305.2,0.3651832]
[1732314817050,0.28169715,3305.6,3304.9,0.03024809]
[1732314817435,0.28169715,3305.5,3304.9,0.03024809]
[1732314817658,0.7621,3305.7,3304.8,0.60525063]
[1732314817881,0.28169268,3305.6,3305.0,0.3651832]
[1732314818035,0.7621,3305.7,3305.0,0.3651832]
[1732314818241,0.7621,3305.7,3305.0,0.39543364]
[1732314818772,0.7621,3305.7,3305.0,0.3651832]
[1732314819141,0.28170057,3305.6,3305.0,0.3651832]
[1732314819333,0.7621,3305.7,3305.0,0.3651832]
[1732314819537,0.28172136,3305.6,3305.0,0.3651832]
[1732314819737,0.7621,3305.7,3305.0,0.3651832]
[1732314820211,0.7621,3305.7,3304.9,0.03025022]
[1732314820367,0.7621,3305.7,3305.0,0.3651832]
[1732314820568,0.7621,3305.7,3304.9,0.03025022]
[1732314820773,0.28173771,3305.6,3304.9,0.03025022]
[1732314821082,0.7621,3305.7,3304.9,0.03025022]
[1732314821376,0.28175118,3305.6,3304.9,0.03025022]
[1732314821572,0.7621,3305.7,3304.9,0.03025022]
[1732314821779,0.28175165,3305.6,3304.9,0.03025022]
[1732314821942,0.7621,3305.7,3304.9,0.03025022]
[1732314822142,0.28175073,3305.6,3304.9,0.03025022]
[1732314822369,0.7621,3305.7,3304.8,0.60525057]
[1732314822546,0.28176569,3305.6,3304.8,0.60525057]
[1732314822739,0.7621,3305.7,3304.8,0.60525057]
[1732314823079,0.28176683,3305.6,3304.8,0.60525057]
[1732314823291,0.7621,3305.7,3304.8,0.60525057]
[1732314823581,0.28177834,3305.6,3304.8,0.60525057]
[1732314823781,0.7621,3305.7,3304.8,0.60525057]
[1732314823976,0.2817802,3305.6,3304.8,0.60525057]
[1732314824177,0.7621,3305.7,3304.8,0.60525057]
[1732314824403,0.28177659,3305.6,3304.8,0.60525057]
[1732314824542,0.7621,3305.7,3304.8,0.60525057]
[1732314824747,0.2817841,3305.6,3304.8,0.60525057]
[1732314824976,0.7621,3305.7,3304.8,0.60525057]
[1732314825209,0.28178542,3305.6,3304.8,0.60525057]
[1732314825386,0.7621,3305.7,3304.8,0.60525057]
[1732314825584,0.28178242,3305.6,3304.8,0.60525057]
[1732314825899,0.7621,3305.7,3304.8,0.60525057]
[1732314826046,0.28178364,3305.6,3304.8,0.60525057]
[1732314826369,0.7621,3305.7,3304.8,0.60525057]
[1732314826563,0.28179409,3305.6,3304.8,0.60525057]
[1732314826768,0.7621,3305.7,3304.8,0.60525057]
[1732314826964,0.28181094,3305.6,3304.8,0.60525057]
[1732314827168,0.28181094,3305.5,3304.8,0.60525057]
[1732314827382,0.7621,3305.7,3304.8,0.60525057]
[1732314827581,0.28180682,3305.6,3304.8,0.60525057]
[1732314827760,0.7621,3305.7,3304.8,0.60525057]
[1732314827951,0.28180814,3305.6,3304.8,0.60525057]
[1732314828150,0.7621,3307.3,3304.8,0.60525057]
[1732314828362,1.206781,3307.4,3304.8,0.60525057]
[1732314828363,0.7621,3306.3,3304.8,0.60525057]
[1732314828562,0.7621,3306.3,3305.0,0.575]
[1732314828563,0.73270745,3306.2,3305.0,0.575]
[1732314828757,0.73270745,3306.1,3305.1,0.25167485]
[1732314828960,0.28180374,3306.0,3305.2,0.22142703]
[1732314829179,0.28180374,3305.9,3305.3,0.22142703]
[1732314829397,0.7621,3306.3,3305.1,0.03024782]
[1732314829398,0.28180374,3305.8,3305.2,0.22142703]
[1732314829679,0.28180374,3305.7,3305.3,0.22142703]
[1732314829898,0.2818016,3306.0,3305.5,0.575]
[1732314830046,0.28180116,3305.9,3305.5,0.575]
[1732314830247,0.28180116,3305.8,3305.5,0.575]
[1732314830497,0.45090371,3306.2,3305.5,0.575]
[1732314830658,0.28180003,3306.1,3305.5,0.575]
[1732314830848,0.28180003,3306.0,3305.5,0.575]
[1732314831052,0.28180003,3305.9,3305.6,0.03024788]
[1732314831260,0.7758,3306.5,3305.7,0.58670804]
[1732314831485,0.7758,3306.5,3305.8,0.25168136]
[1732314831486,0.28177097,3306.4,3305.8,0.25168136]
[1732314831689,0.28177097,3306.3,3305.9,0.22137115]
[1732314831900,0.28177097,3306.2,3306.0,0.03024384]
[1732314832066,0.7758,3306.5,3305.7,0.36527015]
[1732314832067,0.7758,3306.5,3305.8,0.03024402]
[1732314832273,0.28176016,3306.4,3305.9,0.22138018]
[1732314832473,0.7758,3306.8,3306.0,0.60524369]
[1732314832711,0.28172763,3306.7,3306.1,0.22133684]
[1732314832915,0.28172763,3306.6,3306.2,0.22133684]
[1732314833129,0.28172763,3306.5,3306.0,0.60524369]
[1732314833286,0.7758,3306.8,3306.1,0.22127226]
[1732314833488,0.28166899,3306.7,3306.2,0.03024068]
[1732314833789,0.28166899,3306.6,3306.2,0.03024068]
[1732314834099,0.28166899,3306.5,3306.0,0.575]
[1732314834415,0.7758,3307.0,3306.1,0.22125206]
[1732314834623,0.73240231,3306.9,3306.0,0.60524136]
[1732314834770,0.2816381,3306.8,3306.1,0.2212517]
[1732314834971,0.2816381,3306.7,3306.1,0.2212517]
[1732314835174,1.3258,3307.0,3306.1,0.2212517]
[1732314835175,0.2816381,3306.6,3306.1,0.2212517]
[1732314835410,1.77656421,3307.0,3306.1,0.2212517]
[1732314835719,0.28159161,3306.9,3306.1,0.2212517]
[1732314835921,0.28159161,3306.8,3306.1,0.2212517]
[1732314836085,0.28159161,3306.7,3306.1,0.25149239]
[1732314836293,0.2815903,3306.6,3306.1,0.03024069]
[1732314836484,1.3258,3307.0,3306.0,0.575]
[1732314836690,0.28155689,3306.9,3306.1,0.22115293]
[1732314836978,0.28155689,3306.8,3306.0,0.575]
[1732314837197,0.28155689,3306.7,3306.1,0.22113413]
[1732314837523,0.28155689,3306.6,3306.0,0.575]
[1732314837681,1.3258,3307.0,3306.1,0.22110471]
[1732314837885,0.28153452,3306.9,3306.2,0.03024075]
[1732314838082,0.28153452,3306.8,3306.2,0.03024075]
[1732314838278,0.28153452,3306.7,3306.0,0.60523956]
[1732314838486,0.7758,3307.0,3306.1,0.58632761]
[1732314838716,0.28149425,3306.9,3306.2,0.2512967]
[1732314838931,0.28149425,3306.8,3306.3,0.575]
[1732314839088,0.28149425,3306.7,3306.4,0.03023949]
[1732314839417,0.8276,3307.2,3306.4,0.03023949]
[1732314839628,0.83145187,3307.1,3306.4,0.03023949]
[1732314839923,0.28145187,3307.0,3306.4,0.39550964]
[1732314840087,0.28145187,3306.9,3306.4,0.39550964]
[1732314840597,0.28145187,3306.8,3306.4,0.39550964]
[1732314840803,0.28145187,3306.7,3306.4,0.36527015]
[1732314841115,0.55,3307.1,3306.4,0.36527015]
[1732314841428,0.28143697,3307.0,3306.4,0.36527015]
[1732314841597,0.28143697,3306.9,3306.4,0.36527015]
[1732314841811,0.28143697,3306.8,3306.4,0.36527015]
[1732314841988,0.28143697,3306.7,3306.4,0.36527015]
[1732314842182,0.55,3307.1,3306.0,0.575]
[1732314842183,1.10903697,3306.6,3306.0,0.575]
[1732314842381,0.28143697,3306.5,3305.0,0.575]
[1732314842585,0.28141891,3306.4,3305.2,0.575]
[1732314842803,0.8276,3306.6,3305.4,0.575]
[1732314843004,0.28142239,3306.5,3305.5,0.25133393]
[1732314843213,0.28142239,3306.4,3305.6,0.22109148]
[1732314843419,0.8276,3306.6,3305.7,0.03024291]
[1732314843625,0.28140948,3306.5,3305.7,0.03024291]
[1732314843930,0.8276,3306.6,3305.8,0.22109988]
[1732314843931,0.28140948,3306.4,3305.8,0.22109988]
[1732314844099,0.8276,3306.6,3305.7,0.03024291]
[1732314844100,0.28140948,3306.3,3305.7,0.03024291]
[1732314844300,0.55,3305.9,3304.9,0.03024286]
[1732314844506,1.10901004,3305.8,3304.9,0.03024286]
[1732314844691,0.28141004,3305.7,3304.9,0.03024286]
[1732314845033,0.28141004,3305.6,3304.9,0.03024286]
[1732314845187,0.28141004,3305.5,3304.8,0.03025066]
[1732314845384,0.8276,3305.8,3304.8,0.03025066]
[1732314845640,0.28147841,3305.7,3304.8,0.03025066]
[1732314845923,0.28147841,3305.6,3304.8,0.03025066]
[1732314846121,0.55,3305.7,3304.8,0.03025066]
[1732314846328,0.28147002,3305.6,3304.7,0.575]
[1732314846540,0.28147002,3305.5,3304.7,0.575]
[1732314846836,0.55,3305.7,3304.7,0.575]
[1732314847036,0.28146731,3305.6,3304.7,0.575]
[1732314847332,0.28146731,3305.5,3304.7,0.575]
[1732314847538,0.55,3305.7,3304.7,0.575]
[1732314847539,0.28148344,3305.4,3304.7,0.575]
[1732314847723,0.55,3305.7,3304.7,0.575]
[1732314848037,0.28148677,3305.6,3304.7,0.575]
[1732314848213,0.28148677,3305.5,3304.7,0.575]
[1732314848544,0.28145154,3305.4,3304.8,0.03025298]
[1732314848837,0.55,3305.7,3304.8,0.03025298]
[1732314849039,0.8276,3305.4,3304.2,0.575]
[1732314849200,0.8276,3305.4,3304.3,0.03025445]
[1732314849201,0.28145149,3305.3,3304.3,0.03025445]
[1732314849404,0.28145149,3305.3,3304.3,0.36867632]
[1732314849601,0.28145149,3305.2,3304.3,0.36867632]
[1732314849812,0.8276,3305.4,3304.3,0.36867632]
[1732314850017,0.28142466,3305.3,3304.3,0.36867632]
[1732314851347,0.7676,3305.7,3304.4,0.91342187]
[1732314851516,0.28128364,3305.6,3304.5,0.03025302]
[1732314853803,0.7676,3305.7,3304.5,0.03025302]
[1732314854912,0.7676,3305.7,3304.4,0.60525306]
[1732314855135,0.83123953,3305.6,3304.4,0.60525306]
[1732314855333,0.28123953,3305.5,3304.4,0.60525306]
[1732314856106,0.28123953,3305.5,3304.4,0.575]
[1732314856820,0.28123953,3305.5,3304.5,0.03025464]
[1732314857329,0.55,3305.6,3304.6,0.575]
[1732314857512,0.28117456,3305.5,3304.7,0.03025462]
[1732314857844,0.55,3305.6,3304.7,0.03025462]
[1732314858455,0.28116181,3305.5,3304.6,0.575]
[1732314858614,0.55,3305.6,3304.6,0.575]
[1732314858809,0.28117168,3305.5,3304.7,0.03025466]
[1732314859047,0.7676,3305.7,3304.7,0.03025466]
[1732314859345,0.28116273,3305.6,3304.7,0.03025466]
[1732314859516,0.28116273,3305.6,3304.6,0.575]
[1732314861450,0.28116273,3305.6,3302.8,1.24956096]
[1732314861451,0.7718,3306.4,3304.8,0.575]
[1732314861667,0.2810452,3306.3,3305.0,0.575]
[1732314861854,0.2810452,3306.3,3305.2,0.575]
[1732314862053,0.7718,3306.7,3305.2,0.575]
[1732314862054,0.7718,3306.7,3305.4,0.575]
[1732314862260,0.7718,3306.7,3305.3,0.03024306]
[1732314862261,0.7718,3306.7,3305.6,0.575]
[1732314862563,0.7718,3306.7,3305.7,0.03024256]
[1732314862775,0.28100629,3306.6,3305.7,0.03024256]
[1732314863134,0.7718,3306.7,3305.7,0.03024256]
[1732314863433,0.28102755,3306.6,3305.7,0.03024256]
[1732314864252,0.7718,3306.7,3305.7,0.03024256]
[1732314864968,0.28103879,3306.6,3305.8,0.575]
[1732314865183,0.7718,3307.0,3305.9,0.6052426]
[1732314865330,0.28101926,3306.9,3305.9,0.6052426]
[1732314865536,0.7718,3307.2,3305.9,0.6052426]
[1732314865768,0.28100237,3307.1,3305.9,0.6052426]
[1732314866076,0.7718,3307.2,3305.9,0.6052426]
[1732314866367,0.28099731,3307.1,3305.9,0.6052426]
[1732314868569,1.206781,3307.4,3305.9,0.6052426]
[1732314868874,0.28089163,3307.3,3305.9,0.6052426]
[1732314869089,0.28089163,3307.3,3306.0,0.575]
[1732314869260,0.28089163,3307.3,3306.2,0.575]
[1732314869467,0.28089163,3307.3,3306.4,0.575]
[1732314869676,0.28089163,3307.3,3306.5,0.03023693]
[1732314869983,1.206781,3307.4,3306.5,0.03023693]
[1732314870188,0.28083722,3307.3,3306.5,0.03023693]
[1732314871150,0.28083722,3307.3,3306.6,0.575]
[1732314871501,1.206781,3307.4,3306.6,0.575]
[1732314873981,1.206781,3307.4,3306.8,0.575]
[1732314874157,1.206781,3307.4,3306.9,0.60523395]
[1732314879291,1.206781,3307.4,3306.9,0.94365582]
[1732314879502,1.206781,3307.4,3307.0,0.575]
[1732314879905,1.206781,3307.4,3307.2,0.575]
[1732314881479,1.206781,3307.4,3307.3,0.91342187]
[1732314887675,1.178481,3307.4,3307.3,0.91342187]
[1732314891926,0.1493577,3307.5,3307.3,0.91342187]
[1732314892096,1.3278387,3307.5,3307.4,0.03022508]
[1732314892414,1.3278387,3307.5,3307.3,0.91342187]
[1732314894308,1.3278387,3307.5,3307.4,0.575]
[1732314900014,1.32655796,3307.5,3307.4,0.575]
[1732314901603,1.32655796,3307.5,3307.4,0.91342187]
[1732314902003,1.32655796,3307.5,3307.4,2.44080813]
[1732314902218,1.32655796,3307.5,3307.4,2.10238626]
[1732314903047,0.14807696,3307.5,3307.4,2.10238626]
[1732314903352,0.7944,3308.7,3307.6,0.575]
[1732314903504,1.205746,3308.6,3307.8,0.575]
[1732314903705,1.205746,3308.6,3307.9,0.03022225]
[1732314904046,1.205746,3308.6,3307.9,0.36864412]
[1732314904204,1.205746,3308.6,3308.0,0.575]
[1732314904410,1.205746,3308.6,3308.1,0.03022226]
[1732314904939,1.205746,3308.6,3308.1,0.36864413]
[1732314905138,1.205746,3308.6,3308.2,0.91342187]
[1732314905339,1.205746,3308.6,3308.3,0.03022024]
[1732314905505,1.205746,3308.6,3308.4,0.33842187]
[1732314905706,1.205746,3308.6,3308.5,0.60522063]
[1732314905904,1.205746,3308.6,3308.5,0.575]
[1732314906444,1.205746,3308.6,3308.5,2.10462231]
[1732314907250,1.205746,3308.6,3308.4,1.51755533]
[1732314907438,1.205746,3308.6,3308.3,2.13619891]
[1732314907966,1.165746,3308.6,3308.3,2.47462078]
[1732314908273,1.165746,3308.6,3308.4,1.8559772]
[1732314908474,1.165746,3308.6,3308.5,1.52962231]
[1732314910343,1.165746,3308.6,3308.5,1.86804418]
[1732314911743,1.165746,3308.6,3308.5,2.44304418]
[1732314913344,0.8241,3309.5,3308.5,2.44304418]
[1732314913652,0.8241,3309.5,3308.7,1.57434361]
[1732314913846,1.165746,3309.4,3308.9,1.51810539]
[1732314914046,1.165746,3309.4,3308.8,0.39213601]
[1732314914047,1.165746,3309.4,3308.8,1.94151327]
[1732314914275,1.165746,3309.4,3308.8,1.91129835]
[1732314915404,1.165746,3309.4,3308.9,0.03021485]
[1732314915555,1.165746,3309.4,3309.0,0.93692187]
[1732314915882,1.165746,3309.4,3309.1,0.0302148]
[1732314916180,1.165746,3309.4,3309.2,0.36192187]
[1732314917461,1.165746,3309.4,3309.0,0.575]
[1732314917683,1.165746,3309.4,3309.0,0.93692187]
[1732314918310,1.165746,3309.4,3309.0,2.46151348]
[1732314918522,1.116546,3309.4,3309.0,2.46151348]
[1732314918822,1.116546,3309.4,3309.1,0.36192187]
[1732314919824,1.115746,3309.4,3309.1,0.36192187]
[1732314920122,1.115746,3309.4,3309.1,1.90068305]
[1732314926121,0.115746,3309.4,3309.1,1.90068305]
[1732314926328,0.115746,3309.4,3309.2,0.03021061]
[1732314926530,0.115746,3309.4,3309.3,0.36192187]
[1732314930466,0.115746,3309.4,3309.3,0.39213314]
[1732314930763,0.115746,3309.4,3309.3,0.36192187]
[1732314932065,0.115746,3309.4,3309.3,0.42441821]
[1732314933340,0.115746,3309.4,3309.3,2.02081397]
[1732314940559,0.115746,3309.4,3309.3,2.59581397]
[1732314940874,0.8163,3310.5,3309.3,2.6260241]
[1732314941037,0.7639,3309.6,3309.4,1.56462342]
[1732314941234,0.7639,3309.6,3309.5,1.93819004]
[1732314941775,0.7639,3309.6,3309.5,1.99985901]
[1732314942179,1.5802,3309.6,3309.5,1.63793714]
[1732314942386,0.7639,3309.6,3309.5,1.99985901]
[1732314943060,1.86185239,3309.6,3309.5,0.06166897]
[1732314943265,1.86185239,3309.6,3308.6,0.36192187]
[1732314943266,1.23173763,3309.6,3308.6,0.36192187]
[1732314943575,0.8163,3309.4,3308.7,1.57434361]
[1732314943781,0.8163,3309.4,3308.8,1.91129835]
[1732314943936,1.09797618,3309.3,3308.8,1.91129835]
[1732314944140,0.8163,3309.5,3308.8,1.91129835]
[1732314944350,0.28164755,3309.4,3308.8,1.91129835]
[1732314944593,0.8163,3309.2,3308.8,1.91129835]
[1732314946968,0.7639,3309.6,3308.9,1.60209236]
[1732314947248,0.7639,3309.6,3309.1,1.53876118]
[1732314947454,0.7639,3309.6,3309.2,0.38358854]
[1732314947887,0.7639,3309.6,3309.3,0.05377794]
[1732314948189,0.7639,3309.6,3309.4,0.38358854]
[1732314948773,0.7639,3309.6,3309.5,0.05377794]
[1732314948955,0.7639,3309.6,3309.5,0.43736648]
[1732314951487,1.5606,3309.6,3309.5,0.43736648]
[1732314951798,1.84218463,3309.6,3309.5,0.05377794]
[1732314952404,1.84218463,3309.6,3309.0,0.38358854]
[1732314952612,0.7639,3309.6,3309.5,0.05193352]
[1732314952762,1.04545887,3309.6,3309.0,0.38358854]
[1732314952967,1.5606,3309.6,3309.5,0.05193352]
[1732314953198,1.5606,3309.6,3309.5,0.38358854]
[1732314953199,1.04545524,3309.6,3309.5,0.38358854]
[1732314953402,1.04545524,3309.6,3309.5,0.05193352]
[1732314953899,2.39215524,3309.6,3309.5,0.05193352]
[1732314954106,2.39215524,3309.6,3308.7,1.57434361]
[1732314954291,2.39215524,3309.6,3308.4,0.575]
[1732314954292,0.28155524,3309.5,3308.9,1.51810539]
[1732314954490,0.28155524,3309.5,3309.0,0.38358854]
[1732314954707,2.1106,3309.6,3309.1,0.03021805]
[1732314954708,1.5606,3309.6,3309.1,0.03021805]
[1732314954865,1.5606,3309.6,3309.2,0.38358854]
[1732314958690,0.758,3309.5,3309.2,0.38358854]
[1732314961915,0.758,3309.5,3309.3,0.05202189]
[1732314962096,0.758,3309.5,3309.4,0.38358854]
[1732314962500,0.758,3309.5,3309.4,0.43561043]
[1732314967207,0.758,3309.5,3307.7,0.03021525]
[1732314967208,0.55,3309.2,3307.8,1.59406751]
[1732314967409,0.7527,3308.7,3307.9,0.22203376]
[1732314967704,0.7527,3308.7,3308.0,0.22203376]
[1732314967921,0.7527,3308.7,3308.1,0.22203376]
[1732314968116,0.28148783,3308.6,3308.2,1.81181144]
[1732314968319,0.7527,3308.7,3307.8,1.59406751]
[1732314968533,0.28133104,3308.6,3308.0,1.59332094]
[1732314968738,0.7527,3308.5,3308.0,1.59332094]
[1732314968947,0.7527,3308.5,3308.2,1.58977768]
[1732314969297,0.7527,3308.5,3307.6,1.53591017]
[1732314969535,0.55,3308.4,3307.8,1.59406751]
[1732314969839,0.55,3308.4,3307.9,0.22177051]
[1732314970136,0.55,3308.4,3308.0,0.22177051]
[1732314970343,0.55,3308.4,3307.6,1.53591017]
[1732314970638,0.55,3308.4,3307.8,1.59406751]
[1732314970798,0.55,3308.4,3307.9,0.22168601]
[1732314971514,0.7527,3308.5,3308.0,0.25191217]
[1732314971838,0.43561043,3308.8,3308.0,0.25191217]
[1732314971839,1.3448,3308.7,3308.1,0.22168601]
[1732314972038,0.7948,3308.7,3308.2,0.25190937]
[1732314972215,0.7948,3308.7,3308.0,0.8301]
[1732314972216,0.7948,3308.7,3308.3,1.78288492]
[1732314972537,0.43561043,3308.8,3308.4,1.73924134]
[1732314972747,0.43561043,3308.8,3308.5,0.22168601]
[1732314973040,0.43561043,3308.8,3308.6,0.22168601]
[1732314973205,0.98561043,3308.8,3308.7,0.22168601]
[1732314973739,0.55,3308.7,3308.2,1.58977768]
[1732314973905,0.55,3308.7,3308.4,1.51755533]
[1732314974109,0.55,3308.7,3308.5,0.22142647]
[1732314974740,0.55,3308.7,3308.6,0.04175596]
[1732314975454,0.55,3308.7,3308.4,1.51755533]
[1732314975653,0.55,3308.7,3308.5,0.26315417]
[1732314975828,0.55,3308.7,3308.5,0.04175596]
[1732314976517,0.55,3308.7,3308.6,0.22136656]
[1732314976918,0.43561043,3308.8,3308.6,1.02732252]
[1732314977128,0.43561043,3308.8,3308.7,1.79571017]
[1732314977329,0.43561043,3308.8,3308.7,2.63185386]
[1732314977952,0.43561043,3308.8,3308.7,1.05751025]
[1732314978154,0.43561043,3308.8,3308.7,2.90016868]
[1732314979928,0.43561043,3308.8,3308.7,2.8999209]
[1732314981461,0.43561043,3308.8,3308.7,2.67880212]
[1732314981669,0.43561043,3308.8,3308.7,2.89989839]
[1732314982172,0.43561043,3308.8,3308.7,2.63158357]
[1732314984471,0.43561043,3308.8,3308.7,2.63159135]
[1732314985875,0.7639,3309.6,3309.0,1.52459161]
[1732314986178,0.8159,3310.4,3309.3,1.59639576]
[1732314986179,0.55,3310.3,3309.3,1.59639576]
[1732314986382,0.55,3310.3,3309.5,1.57626817]
[1732314986383,1.3659,3310.3,3309.5,1.57626817]
[1732314986569,1.3659,3310.3,3309.6,0.22110405]
[1732314986744,1.3659,3310.3,3309.7,0.22110405]
[1732314986939,1.3659,3310.3,3309.8,0.22110405]
[1732314987256,1.3659,3310.3,3309.9,0.26212007]
[1732314987577,1.3659,3310.3,3310.0,0.22110405]
[1732314987778,1.3659,3310.3,3310.1,0.22110405]
[1732314987939,1.3659,3310.3,3310.1,0.04100722]
[1732314988145,1.3659,3310.3,3309.8,0.03020766]
[1732314988358,1.3659,3310.3,3310.2,0.04100722]
[1732314988562,1.3659,3310.3,3309.8,0.03020766]
[1732314988784,1.3659,3310.3,3310.2,0.04100722]
[1732314988938,1.3659,3310.3,3309.8,0.03020766]
[1732314989142,0.8159,3310.3,3310.2,0.04099696]
[1732314989376,0.1493577,3310.8,3310.2,1.05165788]
[1732314989561,0.8159,3310.7,3310.3,0.22055788]
[1732314989772,0.8159,3310.7,3310.4,0.22055788]
[1732314990062,0.8159,3310.7,3310.5,0.22055788]
[1732314990353,0.9652577,3310.8,3310.6,0.22055788]
[1732314990599,0.9652577,3310.8,3310.7,0.35707315]
[1732314990796,0.1493577,3310.8,3310.6,0.04098817]
[1732314991011,0.1493577,3310.8,3310.4,0.03019949]
[1732314991168,0.1493577,3310.8,3310.7,0.04098817]
[1732314991373,0.1493577,3310.8,3310.7,0.37873982]
[1732314991573,0.1493577,3310.8,3310.7,0.04098817]
[1732314991789,0.1493577,3310.8,3310.7,0.44056132]
[1732314991983,0.1493577,3310.8,3310.7,0.39957315]
[1732314992183,0.1493577,3310.8,3309.1,0.02]
[1732314992184,0.55,3310.7,3310.0,1.57192822]
[1732314992497,0.55,3310.7,3309.6,0.7674]
[1732314992660,0.55,3310.7,3310.1,1.50406782]
[1732314993055,0.55,3310.7,3310.1,1.90364097]
[1732314993374,0.55,3310.7,3310.2,0.39957315]
[1732314996168,0.55,3310.5,3310.2,0.39957315]
[1732314997616,0.55,3310.5,3310.3,0.0408973]
[1732314997902,0.55,3310.5,3310.4,0.39957315]
[1732314998605,1.1146147,3310.8,3310.4,0.39957315]
[1732314998767,0.1493577,3310.8,3310.4,0.39957315]
[1732314998974,0.1493577,3310.8,3310.5,0.04084453]
[1732314999278,0.1493577,3310.8,3310.6,0.39957315]
[1732314999605,0.1493577,3310.8,3310.6,0.44036346]
[1732315000676,0.1493577,3310.8,3310.7,0.7903]
[1732315000879,0.1493577,3310.8,3310.7,1.26084656]
[1732315001969,0.1493577,3310.8,3310.7,0.47054808]
[1732315002319,0.1493577,3310.8,3310.7,0.44035174]
[1732315005086,0.1493577,3310.8,3310.7,2.79139926]
[1732315005285,0.1493577,3310.8,3310.7,2.82159462]
[1732315005519,0.1493577,3310.8,3310.7,2.79139926]
[1732315006985,0.1493577,3310.8,3310.7,0.44035174]
[1732315007820,0.1493577,3310.8,3310.7,1.23065174]
[1732315008215,0.1493577,3310.8,3310.7,2.8215954]
[1732315014606,0.1493577,3310.8,3310.7,2.0312954]
[1732315015709,0.1493577,3310.8,3310.7,2.00109926]
[1732315016226,0.1493577,3310.8,3310.7,0.04077859]
[1732315016532,0.1493577,3310.8,3309.8,0.8249]
[1732315016533,0.1493577,3310.8,3310.0,1.57192822]
[1732315016692,0.1493577,3310.8,3310.7,0.03780727]
[1732315017024,0.1493577,3310.8,3310.2,1.58958686]
[1732315017209,0.1493577,3310.8,3310.7,0.03780727]
[1732315017417,0.1493577,3310.8,3310.2,1.58958686]
[1732315017593,0.1493577,3310.8,3310.7,0.03780727]
[1732315017793,0.1493577,3310.8,3310.2,1.58958686]
[1732315018016,0.1493577,3310.8,3310.7,0.03780727]
[1732315018222,0.1493577,3310.8,3310.2,1.58958686]
[1732315018433,0.1493577,3310.8,3310.7,0.03780727]
[1732315018902,0.1493577,3310.8,3310.2,1.58958686]
[1732315019118,0.7784,3310.7,3310.3,0.03655963]
[1732315019454,0.1493577,3310.8,3310.5,2.34632469]
[1732315019651,0.1493577,3310.8,3310.6,0.41619703]